{"text_format":"1","workbook":"xlsx","n_sheets":2,"sheets":["Saisie des salaires","modèle_fiches"],"not_rendered":{"charts":0,"images":0,"macros":1,"external_links":1,"defined_names":7,"comments":0,"pivot_tables":0},"unopened":[],"bounds":{"document_bytes":16777216,"sheet_cells":100000,"rows_first":2000,"rows_last":500,"rows_between":2000,"halvings":0,"cell_chars":16384,"cell_head_chars":4096},"cells_cut":0,"cells_raw":0,"read":"whole","date_system":"1900"}

{"sheet":"Saisie des salaires","index":0,"n_rows":13,"n_cols":24,"rows_kept":13,"cut":false,"hidden":false,"merged":[]}
[null,"CALCULATEUR DE SALAIRE",null,null,null,null,null,null,null,null,"FIN DE PÉRIODE :",41372,null,"NOM DE SOCIÉTÉ",null,"ADVENTURE WORKS"]
[]
[null,"ID","Nom de l’employé","Heures prestées enregistrées","Heures de vacances","Congés maladie","Heures supplémentaires","Tarif heures supplémentaires","Salaire brut","Impôts et déductions","Autres déductions","Salaire net"," ","Salaire horaire","Régime fiscal","Allocation fédérale","Impôts locaux","Impôt fédéral sur le revenu","Cotisations sociales","Impôt sur l’assurance maladie","Total impôts retenus","Déduction assurance","Autres déductions enregistrées","Total déductions enregistrées"]
[null,1001,"Jean-Charles Colon",50,5,1,null,null,{"$f":"SUM(Employés[[#This Row],[Heures prestées enregistrées]:[Congés maladie]])*Employés[[#This Row],[Salaire horaire]]+Employés[[#This Row],[Heures supplémentaires]]*Employés[[#This Row],[Tarif heures supplémentaires]]","v":560},{"$f":"Employés[[#This Row],[Salaire brut]]*Employés[[#This Row],[Total impôts retenus]] + Employés[[#This Row],[Total déductions enregistrées]]","v":273.08000000000004},20,{"$f":"Employés[[#This Row],[Salaire brut]]-Employés[[#This Row],[Impôts et déductions]]-Employés[[#This Row],[Autres déductions]]","v":266.91999999999996},null,10,1,4,2.3E-2,0.28000000000000003,6.3E-2,1.4500000000000001E-2,{"$f":"SUM(Employés[[#This Row],[Impôts locaux]:[Impôt sur l’assurance maladie]])","v":0.38050000000000006},20,40,{"$f":"SUM(Employés[[#This Row],[Déduction assurance]:[Autres déductions enregistrées]])","v":60}]
[null,1002,"David Jones",40,null,null,null,null,{"$f":"SUM(Employés[[#This Row],[Heures prestées enregistrées]:[Congés maladie]])*Employés[[#This Row],[Salaire horaire]]+Employés[[#This Row],[Heures supplémentaires]]*Employés[[#This Row],[Tarif heures supplémentaires]]","v":320},{"$f":"Employés[[#This Row],[Salaire brut]]*Employés[[#This Row],[Total impôts retenus]] + Employés[[#This Row],[Total déductions enregistrées]]","v":131.76000000000002},null,{"$f":"Employés[[#This Row],[Salaire brut]]-Employés[[#This Row],[Impôts et déductions]]-Employés[[#This Row],[Autres déductions]]","v":188.23999999999998},null,8,1,1,2.3E-2,0.28000000000000003,6.3E-2,1.4500000000000001E-2,{"$f":"SUM(Employés[[#This Row],[Impôts locaux]:[Impôt sur l’assurance maladie]])","v":0.38050000000000006},0,10,{"$f":"SUM(Employés[[#This Row],[Déduction assurance]:[Autres déductions enregistrées]])","v":10}]
[null,1003,"Eva Gunnarsson",35,3,null,null,null,{"$f":"SUM(Employés[[#This Row],[Heures prestées enregistrées]:[Congés maladie]])*Employés[[#This Row],[Salaire horaire]]+Employés[[#This Row],[Heures supplémentaires]]*Employés[[#This Row],[Tarif heures supplémentaires]]","v":532},{"$f":"Employés[[#This Row],[Salaire brut]]*Employés[[#This Row],[Total impôts retenus]] + Employés[[#This Row],[Total déductions enregistrées]]","v":240.42600000000004},null,{"$f":"Employés[[#This Row],[Salaire brut]]-Employés[[#This Row],[Impôts et déductions]]-Employés[[#This Row],[Autres déductions]]","v":291.57399999999996},null,14,1,3,2.3E-2,0.28000000000000003,6.3E-2,1.4500000000000001E-2,{"$f":"SUM(Employés[[#This Row],[Impôts locaux]:[Impôt sur l’assurance maladie]])","v":0.38050000000000006},18,20,{"$f":"SUM(Employés[[#This Row],[Déduction assurance]:[Autres déductions enregistrées]])","v":38}]
[null,1008,"Sébastien Motte",50,5,1,null,null,{"$f":"SUM(Employés[[#This Row],[Heures prestées enregistrées]:[Congés maladie]])*Employés[[#This Row],[Salaire horaire]]+Employés[[#This Row],[Heures supplémentaires]]*Employés[[#This Row],[Tarif heures supplémentaires]]","v":1120},{"$f":"Employés[[#This Row],[Salaire brut]]*Employés[[#This Row],[Total impôts retenus]] + Employés[[#This Row],[Total déductions enregistrées]]","v":441.16000000000008},null,{"$f":"Employés[[#This Row],[Salaire brut]]-Employés[[#This Row],[Impôts et déductions]]-Employés[[#This Row],[Autres déductions]]","v":678.83999999999992},null,20,1,0,2.3E-2,0.28000000000000003,6.3E-2,1.4500000000000001E-2,{"$f":"SUM(Employés[[#This Row],[Impôts locaux]:[Impôt sur l’assurance maladie]])","v":0.38050000000000006},15,null,{"$f":"SUM(Employés[[#This Row],[Déduction assurance]:[Autres déductions enregistrées]])","v":15}]
[null,1011,"Isabelle Scemla",40,null,null,2,15,{"$f":"SUM(Employés[[#This Row],[Heures prestées enregistrées]:[Congés maladie]])*Employés[[#This Row],[Salaire horaire]]+Employés[[#This Row],[Heures supplémentaires]]*Employés[[#This Row],[Tarif heures supplémentaires]]","v":430},{"$f":"Employés[[#This Row],[Salaire brut]]*Employés[[#This Row],[Total impôts retenus]] + Employés[[#This Row],[Total déductions enregistrées]]","v":223.61500000000004},null,{"$f":"Employés[[#This Row],[Salaire brut]]-Employés[[#This Row],[Impôts et déductions]]-Employés[[#This Row],[Autres déductions]]","v":206.38499999999996},null,10,1,0,2.3E-2,0.28000000000000003,6.3E-2,1.4500000000000001E-2,{"$f":"SUM(Employés[[#This Row],[Impôts locaux]:[Impôt sur l’assurance maladie]])","v":0.38050000000000006},20,40,{"$f":"SUM(Employés[[#This Row],[Déduction assurance]:[Autres déductions enregistrées]])","v":60}]
[null,1012,"David Bristol",40,5,1,null,null,{"$f":"SUM(Employés[[#This Row],[Heures prestées enregistrées]:[Congés maladie]])*Employés[[#This Row],[Salaire horaire]]+Employés[[#This Row],[Heures supplémentaires]]*Employés[[#This Row],[Tarif heures supplémentaires]]","v":552},{"$f":"Employés[[#This Row],[Salaire brut]]*Employés[[#This Row],[Total impôts retenus]] + Employés[[#This Row],[Total déductions enregistrées]]","v":270.03600000000006},null,{"$f":"Employés[[#This Row],[Salaire brut]]-Employés[[#This Row],[Impôts et déductions]]-Employés[[#This Row],[Autres déductions]]","v":281.96399999999994},null,12,1,4,2.3E-2,0.28000000000000003,6.3E-2,1.4500000000000001E-2,{"$f":"SUM(Employés[[#This Row],[Impôts locaux]:[Impôt sur l’assurance maladie]])","v":0.38050000000000006},20,40,{"$f":"SUM(Employés[[#This Row],[Déduction assurance]:[Autres déductions enregistrées]])","v":60}]
[null,1025,"Anne Weiler",36,null,2,1,18,{"$f":"SUM(Employés[[#This Row],[Heures prestées enregistrées]:[Congés maladie]])*Employés[[#This Row],[Salaire horaire]]+Employés[[#This Row],[Heures supplémentaires]]*Employés[[#This Row],[Tarif heures supplémentaires]]","v":474},{"$f":"Employés[[#This Row],[Salaire brut]]*Employés[[#This Row],[Total impôts retenus]] + Employés[[#This Row],[Total déductions enregistrées]]","v":225.35700000000003},25,{"$f":"Employés[[#This Row],[Salaire brut]]-Employés[[#This Row],[Impôts et déductions]]-Employés[[#This Row],[Autres déductions]]","v":223.64299999999997},null,12,1,2,2.3E-2,0.28000000000000003,6.3E-2,1.4500000000000001E-2,{"$f":"SUM(Employés[[#This Row],[Impôts locaux]:[Impôt sur l’assurance maladie]])","v":0.38050000000000006},25,20,{"$f":"SUM(Employés[[#This Row],[Déduction assurance]:[Autres déductions enregistrées]])","v":45}]
[null,1032,"Luka Abrus",40,5,1,null,null,{"$f":"SUM(Employés[[#This Row],[Heures prestées enregistrées]:[Congés maladie]])*Employés[[#This Row],[Salaire horaire]]+Employés[[#This Row],[Heures supplémentaires]]*Employés[[#This Row],[Tarif heures supplémentaires]]","v":460},{"$f":"Employés[[#This Row],[Salaire brut]]*Employés[[#This Row],[Total impôts retenus]] + Employés[[#This Row],[Total déductions enregistrées]]","v":175.03000000000003},50,{"$f":"Employés[[#This Row],[Salaire brut]]-Employés[[#This Row],[Impôts et déductions]]-Employés[[#This Row],[Autres déductions]]","v":234.96999999999997},null,10,1,3,2.3E-2,0.28000000000000003,6.3E-2,1.4500000000000001E-2,{"$f":"SUM(Employés[[#This Row],[Impôts locaux]:[Impôt sur l’assurance maladie]])","v":0.38050000000000006},null,null,{"$f":"SUM(Employés[[#This Row],[Déduction assurance]:[Autres déductions enregistrées]])","v":0}]
[null,1049,"David Dupont",40,1,null,null,null,{"$f":"SUM(Employés[[#This Row],[Heures prestées enregistrées]:[Congés maladie]])*Employés[[#This Row],[Salaire horaire]]+Employés[[#This Row],[Heures supplémentaires]]*Employés[[#This Row],[Tarif heures supplémentaires]]","v":615},{"$f":"Employés[[#This Row],[Salaire brut]]*Employés[[#This Row],[Total impôts retenus]] + Employés[[#This Row],[Total déductions enregistrées]]","v":259.00750000000005},23,{"$f":"Employés[[#This Row],[Salaire brut]]-Employés[[#This Row],[Impôts et déductions]]-Employés[[#This Row],[Autres déductions]]","v":332.99249999999995},null,15,1,2,2.3E-2,0.28000000000000003,6.3E-2,1.4500000000000001E-2,{"$f":"SUM(Employés[[#This Row],[Impôts locaux]:[Impôt sur l’assurance maladie]])","v":0.38050000000000006},25,null,{"$f":"SUM(Employés[[#This Row],[Déduction assurance]:[Autres déductions enregistrées]])","v":25}]
[null,"Totaux",{"$f":"SUBTOTAL(103,Employés[Nom de l’employé])","v":9},{"$f":"SUBTOTAL(109,Employés[Heures prestées enregistrées])","v":371},{"$f":"SUBTOTAL(109,Employés[Heures de vacances])","v":24},{"$f":"SUBTOTAL(109,Employés[Congés maladie])","v":6},{"$f":"SUBTOTAL(109,Employés[Heures supplémentaires])","v":3},null,{"$f":"SUBTOTAL(109,Employés[Salaire brut])","v":5063},{"$f":"SUBTOTAL(109,Employés[Impôts et déductions])","v":2239.4715000000001},{"$f":"SUBTOTAL(109,Employés[Autres déductions])","v":118},{"$f":"SUBTOTAL(109,Employés[Salaire net])","v":2705.5284999999994},null,null,null,null,null,null,null,null,null,{"$f":"SUBTOTAL(109,Employés[Déduction assurance])","v":143},{"$f":"SUBTOTAL(109,Employés[Autres déductions enregistrées])","v":170},{"$f":"SUBTOTAL(109,Employés[Total déductions enregistrées])","v":313}]

{"sheet":"modèle_fiches","index":1,"n_rows":47,"n_cols":13,"rows_kept":47,"cut":false,"hidden":true,"merged":[[2,7,2,8],[14,7,14,8],[26,7,26,8],[38,7,38,8],[38,11,38,12],[26,11,26,12],[14,11,14,12],[2,11,2,12],[2,3,2,4],[14,3,14,4],[26,3,26,4],[38,3,38,4],[44,2,44,3],[8,2,8,3],[9,2,9,3],[45,2,45,3],[32,2,32,3],[33,2,33,3],[20,2,20,3],[21,2,21,3]]}
[]
[null,null,{"$f":"NomSociété","v":"ADVENTURE WORKS"}]
[null,null,"PÉRIODE",{"$f":"FinPériode","v":41372},null,null,"NOM",{"$f":"IFERROR(INDEX(#REF!,Fiche),\"\")","v":""},null,null,"ID EMPLOYÉ",{"$f":"IFERROR(INDEX(Employés[ID],Fiche),\"\")","v":1001}]
[null,null,"Régime fiscal",null,{"$f":"IFERROR(INDEX(Employés[Régime fiscal],Fiche),\"\")","v":1},null,"Allocation fédérale (formulaire W-4)",null,{"$f":"IFERROR(INDEX(Employés[Allocation fédérale],Fiche),\"\")","v":4},null,"Heures prestées",null,{"$f":"IFERROR(INDEX(Employés[Heures prestées enregistrées],Fiche),\"\")","v":50}]
[null,null,"Tarif horaire",null,{"$f":"IFERROR(INDEX(Employés[Salaire horaire],Fiche),\"\")","v":10},null,"Tarif heures supplémentaires",null,{"$f":"IFERROR(INDEX(Employés[Tarif heures supplémentaires],Fiche),\"\")","v":0},null,"Congés maladie",null,{"$f":"IFERROR(INDEX(Employés[Congés maladie],Fiche),\"\")","v":1}]
[null,null,"Cotisations sociales",null,{"$f":"IFERROR(INDEX(Employés[Cotisations sociales],Fiche)  *  INDEX(Employés[Salaire brut],Fiche),\"\")","v":35.28},null,"Impôt fédéral sur le revenu ",null,{"$f":"IFERROR(INDEX(Employés[Impôt fédéral sur le revenu],Fiche)  *  INDEX(Employés[Salaire brut],Fiche),\"\")","v":156.80000000000001},null,"Heures de vacances",null,{"$f":"IFERROR(INDEX(Employés[Heures de vacances],Fiche),\"\")","v":5}]
[null,null,"Impôt sur l’assurance maladie ",null,{"$f":"IFERROR(INDEX(Employés[Impôt sur l’assurance maladie],Fiche)  *  INDEX(Employés[Salaire brut],Fiche),\"\")","v":8.120000000000001},null,"Impôts locaux ",null,{"$f":"IFERROR(INDEX(Employés[Impôts locaux],Fiche)  *  INDEX(Employés[Salaire brut],Fiche),\"\")","v":12.879999999999999},null,"Heures supplémentaires",null,{"$f":"IFERROR(INDEX(Employés[Heures supplémentaires],Fiche),\"\")","v":0}]
[null,null,"Déduction assurance",null,{"$f":"IFERROR(INDEX(Employés[Déduction assurance],Fiche),\"\")","v":20},null,"Autres déductions standard",null,{"$f":"IFERROR(INDEX(Employés[Autres déductions enregistrées],Fiche),\"\")","v":40},null,"Salaire brut",null,{"$f":"IFERROR(INDEX(Employés[Salaire brut],Fiche),\"\")","v":560}]
[null,null,"Total des impôts et",null,{"$f":"IFERROR(INDEX(Employés[Impôts et déductions],Fiche),\"\")","v":273.08000000000004},null,"Autres déductions",null,{"$f":"IFERROR(INDEX(Employés[Autres déductions],Fiche),\"\")","v":20},null,"Total des impôts et déductions ",null,{"$f":"IFERROR(INDEX(Employés[Impôts et déductions],Fiche)  +  INDEX(Employés[Autres déductions],Fiche),\"\")","v":293.08000000000004}]
[null,null,"déductions standard  "]
[null,null,null,null,null,null,null,null,null,null,"SALAIRE NET",null,{"$f":"IFERROR(INDEX(Employés[Salaire net],Fiche),\"\")","v":266.91999999999996}]
[]
[]
[null,null,{"$f":"NomSociété","v":"ADVENTURE WORKS"}]
[null,null,"PÉRIODE",{"$f":"FinPériode","v":41372},null,null,"NOM",{"$f":"IFERROR(INDEX(#REF!,Fiche),\"\")","v":""},null,null,"ID EMPLOYÉ",{"$f":"IFERROR(INDEX(Employés[ID],Fiche),\"\")","v":1002}]
[null,null,"Régime fiscal",null,{"$f":"IFERROR(INDEX(Employés[Régime fiscal],Fiche),\"\")","v":1},null,"Allocation fédérale (formulaire W-4)",null,{"$f":"IFERROR(INDEX(Employés[Allocation fédérale],Fiche),\"\")","v":1},null,"Heures prestées",null,{"$f":"IFERROR(INDEX(Employés[Heures prestées enregistrées],Fiche),\"\")","v":40}]
[null,null,"Tarif horaire",null,{"$f":"IFERROR(INDEX(Employés[Salaire horaire],Fiche),\"\")","v":8},null,"Tarif heures supplémentaires",null,{"$f":"IFERROR(INDEX(Employés[Tarif heures supplémentaires],Fiche),\"\")","v":0},null,"Congés maladie",null,{"$f":"IFERROR(INDEX(Employés[Congés maladie],Fiche),\"\")","v":0}]
[null,null,"Cotisations sociales",null,{"$f":"IFERROR(INDEX(Employés[Cotisations sociales],Fiche)  *  INDEX(Employés[Salaire brut],Fiche),\"\")","v":20.16},null,"Impôt fédéral sur le revenu ",null,{"$f":"IFERROR(INDEX(Employés[Impôt fédéral sur le revenu],Fiche)  *  INDEX(Employés[Salaire brut],Fiche),\"\")","v":89.600000000000009},null,"Heures de vacances",null,{"$f":"IFERROR(INDEX(Employés[Heures de vacances],Fiche),\"\")","v":0}]
[null,null,"Impôt sur l’assurance maladie ",null,{"$f":"IFERROR(INDEX(Employés[Impôt sur l’assurance maladie],Fiche)  *  INDEX(Employés[Salaire brut],Fiche),\"\")","v":4.6400000000000006},null,"Impôts locaux ",null,{"$f":"IFERROR(INDEX(Employés[Impôts locaux],Fiche)  *  INDEX(Employés[Salaire brut],Fiche),\"\")","v":7.3599999999999994},null,"Heures supplémentaires",null,{"$f":"IFERROR(INDEX(Employés[Heures supplémentaires],Fiche),\"\")","v":0}]
[null,null,"Déduction assurance",null,{"$f":"IFERROR(INDEX(Employés[Déduction assurance],Fiche),\"\")","v":0},null,"Autres déductions standard",null,{"$f":"IFERROR(INDEX(Employés[Autres déductions enregistrées],Fiche),\"\")","v":10},null,"Salaire brut",null,{"$f":"IFERROR(INDEX(Employés[Salaire brut],Fiche),\"\")","v":320}]
[null,null,"Total des impôts et",null,{"$f":"IFERROR(INDEX(Employés[Impôts et déductions],Fiche),\"\")","v":131.76000000000002},null,"Autres déductions",null,{"$f":"IFERROR(INDEX(Employés[Autres déductions],Fiche),\"\")","v":0},null,"Total des impôts et déductions ",null,{"$f":"IFERROR(INDEX(Employés[Impôts et déductions],Fiche)  +  INDEX(Employés[Autres déductions],Fiche),\"\")","v":131.76000000000002}]
[null,null,"déductions standard  "]
[null,null,null,null,null,null,null,null,null,null,"SALAIRE NET",null,{"$f":"IFERROR(INDEX(Employés[Salaire net],Fiche),\"\")","v":188.23999999999998}]
[]
[]
[null,null,{"$f":"NomSociété","v":"ADVENTURE WORKS"}]
[null,null,"PÉRIODE",{"$f":"FinPériode","v":41372},null,null,"NOM",{"$f":"IFERROR(INDEX(#REF!,Fiche),\"\")","v":""},null,null,"ID EMPLOYÉ",{"$f":"IFERROR(INDEX(Employés[ID],Fiche),\"\")","v":1003}]
[null,null,"Régime fiscal",null,{"$f":"IFERROR(INDEX(Employés[Régime fiscal],Fiche),\"\")","v":1},null,"Allocation fédérale (formulaire W-4)",null,{"$f":"IFERROR(INDEX(Employés[Allocation fédérale],Fiche),\"\")","v":3},null,"Heures prestées",null,{"$f":"IFERROR(INDEX(Employés[Heures prestées enregistrées],Fiche),\"\")","v":35}]
[null,null,"Tarif horaire",null,{"$f":"IFERROR(INDEX(Employés[Salaire horaire],Fiche),\"\")","v":14},null,"Tarif heures supplémentaires",null,{"$f":"IFERROR(INDEX(Employés[Tarif heures supplémentaires],Fiche),\"\")","v":0},null,"Congés maladie",null,{"$f":"IFERROR(INDEX(Employés[Congés maladie],Fiche),\"\")","v":0}]
[null,null,"Cotisations sociales",null,{"$f":"IFERROR(INDEX(Employés[Cotisations sociales],Fiche)  *  INDEX(Employés[Salaire brut],Fiche),\"\")","v":33.515999999999998},null,"Impôt fédéral sur le revenu ",null,{"$f":"IFERROR(INDEX(Employés[Impôt fédéral sur le revenu],Fiche)  *  INDEX(Employés[Salaire brut],Fiche),\"\")","v":148.96},null,"Heures de vacances",null,{"$f":"IFERROR(INDEX(Employés[Heures de vacances],Fiche),\"\")","v":3}]
[null,null,"Impôt sur l’assurance maladie ",null,{"$f":"IFERROR(INDEX(Employés[Impôt sur l’assurance maladie],Fiche)  *  INDEX(Employés[Salaire brut],Fiche),\"\")","v":7.7140000000000004},null,"Impôts locaux ",null,{"$f":"IFERROR(INDEX(Employés[Impôts locaux],Fiche)  *  INDEX(Employés[Salaire brut],Fiche),\"\")","v":12.236000000000001},null,"Heures supplémentaires",null,{"$f":"IFERROR(INDEX(Employés[Heures supplémentaires],Fiche),\"\")","v":0}]
[null,null,"Déduction assurance",null,{"$f":"IFERROR(INDEX(Employés[Déduction assurance],Fiche),\"\")","v":18},null,"Autres déductions standard",null,{"$f":"IFERROR(INDEX(Employés[Autres déductions enregistrées],Fiche),\"\")","v":20},null,"Salaire brut",null,{"$f":"IFERROR(INDEX(Employés[Salaire brut],Fiche),\"\")","v":532}]
[null,null,"Total des impôts et",null,{"$f":"IFERROR(INDEX(Employés[Impôts et déductions],Fiche),\"\")","v":240.42600000000004},null,"Autres déductions",null,{"$f":"IFERROR(INDEX(Employés[Autres déductions],Fiche),\"\")","v":0},null,"Total des impôts et déductions ",null,{"$f":"IFERROR(INDEX(Employés[Impôts et déductions],Fiche)  +  INDEX(Employés[Autres déductions],Fiche),\"\")","v":240.42600000000004}]
[null,null,"déductions standard  "]
[null,null,null,null,null,null,null,null,null,null,"SALAIRE NET",null,{"$f":"IFERROR(INDEX(Employés[Salaire net],Fiche),\"\")","v":291.57399999999996}]
[]
[]
[null,null,{"$f":"NomSociété","v":"ADVENTURE WORKS"}]
[null,null,"PÉRIODE",{"$f":"FinPériode","v":41372},null,null,"NOM",{"$f":"IFERROR(INDEX(#REF!,Fiche),\"\")","v":""},null,null,"ID EMPLOYÉ",{"$f":"IFERROR(INDEX(Employés[ID],Fiche),\"\")","v":1008}]
[null,null,"Régime fiscal",null,{"$f":"IFERROR(INDEX(Employés[Régime fiscal],Fiche),\"\")","v":1},null,"Allocation fédérale (formulaire W-4)",null,{"$f":"IFERROR(INDEX(Employés[Allocation fédérale],Fiche),\"\")","v":0},null,"Heures prestées",null,{"$f":"IFERROR(INDEX(Employés[Heures prestées enregistrées],Fiche),\"\")","v":50}]
[null,null,"Tarif horaire",null,{"$f":"IFERROR(INDEX(Employés[Salaire horaire],Fiche),\"\")","v":20},null,"Tarif heures supplémentaires",null,{"$f":"IFERROR(INDEX(Employés[Tarif heures supplémentaires],Fiche),\"\")","v":0},null,"Congés maladie",null,{"$f":"IFERROR(INDEX(Employés[Congés maladie],Fiche),\"\")","v":1}]
[null,null,"Cotisations sociales",null,{"$f":"IFERROR(INDEX(Employés[Cotisations sociales],Fiche)  *  INDEX(Employés[Salaire brut],Fiche),\"\")","v":70.56},null,"Impôt fédéral sur le revenu ",null,{"$f":"IFERROR(INDEX(Employés[Impôt fédéral sur le revenu],Fiche)  *  INDEX(Employés[Salaire brut],Fiche),\"\")","v":313.60000000000002},null,"Heures de vacances",null,{"$f":"IFERROR(INDEX(Employés[Heures de vacances],Fiche),\"\")","v":5}]
[null,null,"Impôt sur l’assurance maladie ",null,{"$f":"IFERROR(INDEX(Employés[Impôt sur l’assurance maladie],Fiche)  *  INDEX(Employés[Salaire brut],Fiche),\"\")","v":16.240000000000002},null,"Impôts locaux ",null,{"$f":"IFERROR(INDEX(Employés[Impôts locaux],Fiche)  *  INDEX(Employés[Salaire brut],Fiche),\"\")","v":25.759999999999998},null,"Heures supplémentaires",null,{"$f":"IFERROR(INDEX(Employés[Heures supplémentaires],Fiche),\"\")","v":0}]
[null,null,"Déduction assurance",null,{"$f":"IFERROR(INDEX(Employés[Déduction assurance],Fiche),\"\")","v":15},null,"Autres déductions standard",null,{"$f":"IFERROR(INDEX(Employés[Autres déductions enregistrées],Fiche),\"\")","v":0},null,"Salaire brut",null,{"$f":"IFERROR(INDEX(Employés[Salaire brut],Fiche),\"\")","v":1120}]
[null,null,"Total des impôts et",null,{"$f":"IFERROR(INDEX(Employés[Impôts et déductions],Fiche),\"\")","v":441.16000000000008},null,"Autres déductions",null,{"$f":"IFERROR(INDEX(Employés[Autres déductions],Fiche),\"\")","v":0},null,"Total des impôts et déductions ",null,{"$f":"IFERROR(INDEX(Employés[Impôts et déductions],Fiche)  +  INDEX(Employés[Autres déductions],Fiche),\"\")","v":441.16000000000008}]
[null,null,"déductions standard  "]
[null,null,null,null,null,null,null,null,null,null,"SALAIRE NET",null,{"$f":"IFERROR(INDEX(Employés[Salaire net],Fiche),\"\")","v":678.83999999999992}]